fUST/lending_fUST_20240117
["ID","MTS","AMOUNT","RATE_DAILY","PERIOD"]
[311855462,1705474242454,-15210.95,0.00022054,2]
[311855463,1705474242464,-207.63985174,0.00022091,2]
[311855464,1705474242473,-500.0,0.0002219,2]
[311855465,1705474242482,-500.0,0.0002219,2]
[311855466,1705474242492,-500.0,0.0002219,2]
[311855467,1705474242501,-500.0,0.0002219,2]
[311855468,1705474242511,-500.0,0.0002219,2]
[311855469,1705474242520,-500.0,0.0002219,2]
[311855470,1705474242532,-500.0,0.00022191,2]
[311855471,1705474242542,-500.0,0.00022191,2]
[311855472,1705474242551,-500.0,0.00022191,2]
[311855473,1705474242560,-500.0,0.00022191,2]
[311855475,1705474242570,-500.0,0.00022191,2]
[311855476,1705474242579,-500.0,0.00022191,2]
[311855477,1705474242589,-500.0,0.00022191,2]
[311855478,1705474242598,-500.0,0.00022191,2]
[311855479,1705474242608,-500.0,0.00022191,2]
[311855480,1705474242617,-500.0,0.00022191,2]
[311855482,1705474242627,-665.1,0.00022191,2]
[311855483,1705474242635,-380.75533972,0.00022191,2]
[311855484,1705474242648,-1102.1,0.00022191,2]
[311855485,1705474242657,-500.0,0.00022191,2]
[311855486,1705474242667,-500.0,0.00022191,2]
[311855488,1705474242677,-613.21,0.00022191,2]
[311855490,1705474242687,-653.76,0.00022191,2]
[311855493,1705474242696,-500.0,0.00022191,2]
[311855495,1705474242706,-500.0,0.00022191,2]
[311855497,1705474242715,-467.17315,0.00022191,2]
[311855499,1705474242725,-1375.94,0.00022191,2]
[311855501,1705474242733,-500.0,0.00022191,2]
[311855503,1705474242742,-500.53,0.00022191,2]
[311855505,1705474242751,-787.38,0.00022191,2]
[311855507,1705474242761,-1118.13,0.00022191,2]
[311855509,1705474242771,-500.0,0.00022191,2]
[311855511,1705474242782,-500.0,0.00022191,2]
[311855513,1705474242791,-500.0,0.00022191,2]
[311855515,1705474242800,-500.0,0.00022191,2]
[311855516,1705474242810,-500.0,0.00022191,2]
[311855517,1705474242819,-500.0,0.00022191,2]
[311855518,1705474242828,-971.54,0.00022191,2]
[311855519,1705474242837,-500.0,0.00022191,2]
[311855520,1705474242847,-518.94,0.00022191,2]
[311855521,1705474242856,-575.28227044,0.00022191,2]
[311855522,1705474242865,-382.58669765,0.00022191,2]
[311855523,1705474242874,-500.0,0.00022191,2]
[311855524,1705474242883,-259.75011283,0.00022191,2]
[311855525,1705474242892,-500.0,0.00022191,2]
[311855526,1705474242901,-500.0,0.00022191,2]
[311855527,1705474242910,-2311.6,0.00022191,2]
[311855528,1705474242919,-500.0,0.00022191,2]
[311855529,1705474242928,-500.0,0.00022191,2]
[311855530,1705474242937,-500.0,0.00022191,2]
[311855531,1705474242947,-3244.19,0.00022191,2]
[311855532,1705474242956,-500.0,0.00022191,2]
[311855533,1705474242965,-1460.66,0.00022191,2]
[311855534,1705474242974,-1390.81,0.00022191,2]
[311855535,1705474242984,-500.0,0.00022191,2]
[311855536,1705474242993,-500.0,0.00022191,2]
[311855537,1705474243002,-500.0,0.00022191,2]
[311855538,1705474243011,-2205.75,0.00022191,2]
[311855539,1705474243020,-653.04,0.00022191,2]
[311855540,1705474243030,-500.0,0.00022191,2]
[311855541,1705474243040,-500.0,0.00022191,2]
[311855542,1705474243049,-500.0,0.00022191,2]
[311855543,1705474243058,-500.0,0.00022191,2]
[311855544,1705474243067,-500.0,0.00022191,2]
[311855545,1705474243077,-500.0,0.00022191,2]
[311855546,1705474243086,-500.0,0.00022191,2]
[311855547,1705474243095,-344.85757155,0.00022191,2]
[311855548,1705474243104,-829.41,0.00022191,2]
[311855549,1705474243113,-500.0,0.00022191,2]
[311855550,1705474243122,-235.83657108,0.00022191,2]
[311855551,1705474243131,-500.0,0.00022191,2]
[311855552,1705474243140,-500.0,0.00022191,2]
[311855553,1705474243149,-500.0,0.00022191,2]
[311855554,1705474243158,-500.0,0.00022191,2]
[311855555,1705474243167,-607.57,0.00022191,2]
[311855556,1705474243176,-500.0,0.00022191,2]
[311855557,1705474243185,-4873.94,0.00022191,2]
[311855558,1705474243194,-815.4,0.00022191,2]
[311855559,1705474243203,-22386.85,0.00022191,2]
[311855560,1705474243213,-500.0,0.00022191,2]
[311855561,1705474243222,-500.0,0.00022191,2]
[311855562,1705474243231,-500.0,0.00022191,2]
[311855563,1705474243240,-1776.6,0.00022191,2]
[311855564,1705474243249,-2058.75,0.00022191,2]
[311855565,1705474243258,-1728.86,0.00022191,2]
[311855566,1705474243267,-500.0,0.00022191,2]
[311855567,1705474243277,-500.0,0.00022191,2]
[311855568,1705474243286,-500.0,0.00022191,2]
[311855569,1705474243295,-500.0,0.00022191,2]
[311855570,1705474243304,-500.0,0.00022191,2]
[311855571,1705474243313,-500.0,0.00022191,2]
[311855572,1705474243322,-12455.21,0.00022191,2]
[311855573,1705474243330,-500.0,0.00022191,2]
[311855574,1705474243340,-824.47,0.00022191,2]
[311855575,1705474243349,-224.20797195,0.00022191,2]
[311855576,1705474243358,-500.0,0.00022191,2]
[311855577,1705474243367,-500.0,0.00022191,2]
[311855578,1705474243376,-500.0,0.00022191,2]
[311855580,1705474243385,-1539.51,0.00022191,2]
[311855582,1705474243395,-500.0,0.00022191,2]
[311855584,1705474243404,-608.64434299,0.00022191,2]
[311855586,1705474243413,-500.0,0.00022191,2]
[311855588,1705474243422,-500.0,0.00022191,2]
[311855589,1705474243432,-500.0,0.00022191,2]
[311855590,1705474243441,-775.68,0.00022191,2]
[311855592,1705474243450,-500.0,0.00022191,2]
[311855594,1705474243461,-842.63,0.00022191,2]
[311855596,1705474243470,-698.81,0.00022191,2]
[311855598,1705474243479,-5698.63,0.00022191,2]
[311855600,1705474243489,-1554.21,0.00022191,2]
[311855602,1705474243498,-2575.98,0.00022191,2]
[311855604,1705474243508,-563.57,0.00022191,2]
[311855606,1705474243518,-1115.19,0.00022191,2]
[311855608,1705474243529,-500.0,0.00022191,2]
[311855610,1705474243538,-728.88,0.00022191,2]
[311855612,1705474243547,-6883.2,0.00022191,2]
[311855614,1705474243556,-1257.33,0.00022191,2]
[311855615,1705474243566,-8634.05,0.00022191,2]
[311855616,1705474243576,-500.0,0.00022191,2]
[311855617,1705474243585,-2928.67,0.00022191,2]
[311855618,1705474243595,-1700.17,0.00022191,2]
[311855619,1705474243671,-500.0,0.00022191,2]
[311855620,1705474243681,-500.0,0.00022191,2]
[311855621,1705474243690,-15210.95,0.00022191,2]
[311855622,1705474243700,-600.18982921,0.00022326,2]
[311855623,1705474243709,-426.25234149,0.00022326,2]
[311855624,1705474243719,-220.41694556,0.00022327,2]
[311855625,1705474243729,-417.53155676,0.00022327,2]
[311855626,1705474243738,-500.0,0.00022327,2]
[311855627,1705474243747,-463.7706374,0.00022328,2]
[311855628,1705474243756,-500.0,0.00022328,2]
[311855629,1705474243765,-500.0,0.00022328,2]
[311855630,1705474243774,-500.0,0.00022328,2]
[311855631,1705474243786,-500.0,0.00022328,2]
[311855632,1705474243795,-500.0,0.00022328,2]
[311855633,1705474243804,-500.0,0.00022328,2]
[311855634,1705474243814,-500.0,0.00022328,2]
[311855635,1705474243823,-500.0,0.00022328,2]
[311855636,1705474243834,-665.1,0.00022328,2]
[311855637,1705474243843,-1102.1,0.00022328,2]
[311855638,1705474243853,-500.0,0.00022328,2]
[311855639,1705474243861,-500.0,0.00022328,2]
[311855640,1705474243870,-613.21,0.00022328,2]
[311855641,1705474243879,-653.76,0.00022328,2]
[311855642,1705474243889,-500.0,0.00022328,2]
[311855643,1705474243902,-500.0,0.00022328,2]
[311855644,1705474243911,-1375.94,0.00022328,2]
[311855645,1705474243920,-500.0,0.00022328,2]
[311855646,1705474243929,-500.53,0.00022328,2]
[311855647,1705474243938,-787.38,0.00022328,2]
[311855648,1705474243947,-1118.13,0.00022328,2]
[311855649,1705474243956,-500.0,0.00022328,2]
[311855650,1705474243965,-500.0,0.00022328,2]
[311855651,1705474243974,-500.0,0.00022328,2]
[311855652,1705474243984,-199.39250185,0.00022328,2]
[311855653,1705474243992,-500.0,0.00022328,2]
[311855654,1705474244001,-500.0,0.00022328,2]
[311855655,1705474244011,-971.54,0.00022328,2]
[311855656,1705474244020,-500.0,0.00022328,2]
[311855657,1705474244031,-518.94,0.00022328,2]
[311855658,1705474244041,-500.0,0.00022328,2]
[311855659,1705474244050,-500.0,0.00022328,2]
[311855660,1705474244059,-500.0,0.00022328,2]
[311855661,1705474244068,-2311.6,0.00022328,2]
[311855662,1705474244078,-500.0,0.00022328,2]
[311855663,1705474244086,-500.0,0.00022328,2]
[311855664,1705474244096,-500.0,0.00022328,2]
[311855665,1705474244105,-3244.19,0.00022328,2]
[311855666,1705474244114,-302.98557895,0.00022328,2]
[311855667,1705474244123,-1460.66,0.00022328,2]
[311855668,1705474244132,-1390.81,0.00022328,2]
[311855669,1705474244141,-500.0,0.00022328,2]
[311855670,1705474244150,-500.0,0.00022328,2]
[311855671,1705474244160,-500.0,0.00022328,2]
[311855672,1705474244169,-2205.75,0.00022328,2]
[311855673,1705474244178,-653.04,0.00022328,2]
[311855674,1705474244188,-500.0,0.00022328,2]
[311855675,1705474244197,-500.0,0.00022328,2]
[311855676,1705474244206,-500.0,0.00022328,2]
[311855677,1705474244215,-500.0,0.00022328,2]
[311855678,1705474244225,-500.0,0.00022328,2]
[311855679,1705474244234,-500.0,0.00022328,2]
[311855680,1705474244243,-588.73529456,0.00022328,2]
[311855681,1705474244252,-829.41,0.00022328,2]
[311855682,1705474244261,-190.52563167,0.00022328,2]
[311855683,1705474244270,-500.0,0.00022328,2]
[311855684,1705474244281,-500.0,0.00022328,2]
[311855685,1705474244290,-500.0,0.00022328,2]
[311855686,1705474244300,-500.0,0.00022328,2]
[311855687,1705474244308,-607.57,0.00022328,2]
[311855688,1705474244318,-500.0,0.00022328,2]
[311855689,1705474244326,-4873.94,0.00022328,2]
[311855690,1705474244335,-815.4,0.00022328,2]
[311855691,1705474244344,-22386.85,0.00022328,2]
[311855692,1705474244353,-500.0,0.00022328,2]
[311855693,1705474244362,-500.0,0.00022328,2]
[311855694,1705474244370,-500.0,0.00022328,2]
[311855695,1705474244378,-1776.6,0.00022328,2]
[311855696,1705474244387,-2058.75,0.00022328,2]
[311855697,1705474244396,-1728.86,0.00022328,2]
[311855698,1705474244405,-500.0,0.00022328,2]
[311855699,1705474244413,-500.0,0.00022328,2]
[311855700,1705474244422,-500.0,0.00022328,2]
[311855701,1705474244432,-305.08682904,0.00022328,2]
[311855702,1705474244441,-500.0,0.00022328,2]
[311855703,1705474244450,-500.0,0.00022328,2]
[311855704,1705474244460,-12455.21,0.00022328,2]
[311855705,1705474244470,-500.0,0.00022328,2]
[311855706,1705474244479,-824.47,0.00022328,2]
[311855707,1705474244489,-500.0,0.00022328,2]
[311855708,1705474244498,-500.0,0.00022328,2]
[311855709,1705474244508,-500.0,0.00022328,2]
[311855710,1705474244518,-1539.51,0.00022328,2]
[311855711,1705474244530,-500.0,0.00022328,2]
[311855712,1705474244539,-500.0,0.00022328,2]
[311855713,1705474244548,-500.0,0.00022328,2]
[311855714,1705474244557,-500.0,0.00022328,2]
[311855715,1705474244567,-775.68,0.00022328,2]
[311855716,1705474244576,-500.0,0.00022328,2]
[311855717,1705474244585,-842.63,0.00022328,2]
[311855718,1705474244594,-698.81,0.00022328,2]
[311855719,1705474244603,-5698.63,0.00022328,2]
[311855720,1705474244613,-1554.21,0.00022328,2]
[311855721,1705474244622,-2575.98,0.00022328,2]
[311855722,1705474244632,-563.57,0.00022328,2]
[311855723,1705474244645,-1115.19,0.00022328,2]
[311855724,1705474244654,-500.0,0.00022328,2]
[311855725,1705474244663,-728.88,0.00022328,2]
[311855726,1705474244672,-6883.2,0.00022328,2]
[311855727,1705474244683,-1257.33,0.00022328,2]
[311855728,1705474244692,-8634.05,0.00022328,2]
[311855729,1705474244701,-500.0,0.00022328,2]
[311855730,1705474244711,-2928.67,0.00022328,2]
[311855731,1705474244728,-1700.17,0.00022328,2]
[311855732,1705474244739,-500.0,0.00022328,2]
[311855733,1705474244749,-500.0,0.00022328,2]
[311855734,1705474244759,-15210.95,0.00022328,2]
[311855735,1705474244769,-166.666666,0.00022431,2]
[311855736,1705474244778,-500.0,0.00022464,2]
[311855737,1705474244788,-500.0,0.00022465,2]
[311855738,1705474244797,-500.0,0.00022465,2]
[311855739,1705474244806,-500.0,0.00022465,2]
[311855740,1705474244816,-500.0,0.00022465,2]
[311855741,1705474244825,-500.0,0.00022465,2]
[311855742,1705474244834,-500.0,0.00022465,2]
[311855743,1705474244843,-500.0,0.00022465,2]
[311855744,1705474244853,-500.0,0.00022465,2]
[311855745,1705474244862,-665.1,0.00022465,2]
[311855746,1705474244872,-1102.1,0.00022465,2]
[311855747,1705474244881,-500.0,0.00022465,2]
[311855748,1705474244890,-500.0,0.00022465,2]
[311855749,1705474244899,-613.21,0.00022465,2]
[311855750,1705474244908,-653.76,0.00022465,2]
[311855751,1705474244918,-500.0,0.00022465,2]
[311855752,1705474244927,-500.0,0.00022465,2]
[311855753,1705474244936,-1375.94,0.00022465,2]
[311855754,1705474244946,-500.0,0.00022465,2]
[311855755,1705474244955,-500.53,0.00022465,2]
[311855756,1705474244964,-787.38,0.00022465,2]
[311855757,1705474244973,-1118.13,0.00022465,2]
[311855758,1705474244982,-500.0,0.00022465,2]
[311855759,1705474244991,-500.0,0.00022465,2]
[311855760,1705474245000,-500.0,0.00022465,2]
[311855761,1705474245009,-500.0,0.00022465,2]
[311855762,1705474245018,-500.0,0.00022465,2]
[311855763,1705474245088,-971.54,0.00022465,2]
[311855764,1705474245098,-500.0,0.00022465,2]
[311855765,1705474245107,-518.94,0.00022465,2]
[311855766,1705474245116,-500.0,0.00022465,2]
[311855767,1705474245125,-500.0,0.00022465,2]
[311855768,1705474245134,-500.0,0.00022465,2]
[311855769,1705474245144,-2311.6,0.00022465,2]
[311855770,1705474245154,-500.0,0.00022465,2]
[311855771,1705474245163,-500.0,0.00022465,2]
[311855772,1705474245172,-500.0,0.00022465,2]
[311855773,1705474245181,-3244.19,0.00022465,2]
[311855774,1705474245190,-1460.66,0.00022465,2]
[311855775,1705474245200,-1390.81,0.00022465,2]
[311855776,1705474245209,-500.0,0.00022465,2]
[311855777,1705474245219,-500.0,0.00022465,2]
[311855778,1705474245230,-500.0,0.00022465,2]
[311855779,1705474245239,-2205.75,0.00022465,2]
[311855780,1705474245248,-653.04,0.00022465,2]
[311855781,1705474245257,-500.0,0.00022465,2]
[311855782,1705474245266,-500.0,0.00022465,2]
[311855783,1705474245275,-500.0,0.00022465,2]
[311855784,1705474245285,-500.0,0.00022465,2]
[311855785,1705474245294,-500.0,0.00022465,2]
[311855786,1705474245303,-506.36136308,0.00022465,2]
[311855787,1705474245312,-829.41,0.00022465,2]
[311855788,1705474245321,-500.0,0.00022465,2]
[311855789,1705474245330,-500.0,0.00022465,2]
[311855790,1705474245339,-500.0,0.00022465,2]
[311855791,1705474245348,-500.0,0.00022465,2]
[311855792,1705474245357,-607.57,0.00022465,2]
[311855793,1705474245366,-500.0,0.00022465,2]
[311855794,1705474245375,-4873.94,0.00022465,2]
[311855795,1705474245385,-815.4,0.00022465,2]
[311855796,1705474245394,-22386.85,0.00022465,2]
[311855797,1705474245403,-500.0,0.00022465,2]
[311855798,1705474245413,-500.0,0.00022465,2]
[311855799,1705474245422,-500.0,0.00022465,2]
[311855800,1705474245432,-1776.6,0.00022465,2]
[311855801,1705474245441,-2058.75,0.00022465,2]
[311855802,1705474245450,-1728.86,0.00022465,2]
[311855803,1705474245459,-500.0,0.00022465,2]
[311855804,1705474245468,-500.0,0.00022465,2]
[311855805,1705474245478,-500.0,0.00022465,2]
[311855806,1705474245487,-500.0,0.00022465,2]
[311855807,1705474245496,-500.0,0.00022465,2]
[311855808,1705474245506,-12455.21,0.00022465,2]
[311855809,1705474245515,-500.0,0.00022465,2]
[311855810,1705474245524,-824.47,0.00022465,2]
[311855811,1705474245534,-500.0,0.00022465,2]
[311855812,1705474245544,-500.0,0.00022465,2]
[311855813,1705474245553,-505.42235422,0.00022465,2]
[311855814,1705474245562,-1539.51,0.00022465,2]
[311855815,1705474245572,-500.0,0.00022465,2]
[311855816,1705474245580,-500.0,0.00022465,2]
[311855817,1705474245590,-500.0,0.00022465,2]
[311855818,1705474245599,-500.0,0.00022465,2]
[311855819,1705474245608,-775.68,0.00022465,2]
[311855820,1705474245617,-500.0,0.00022465,2]
[311855821,1705474245627,-842.63,0.00022465,2]
[311855822,1705474245639,-698.81,0.00022465,2]
[311855823,1705474245650,-5698.63,0.00022465,2]
[311855824,1705474245659,-1554.21,0.00022465,2]
[311855825,1705474245668,-2575.98,0.00022465,2]
[311855827,1705474245678,-563.57,0.00022465,2]
[311855828,1705474245687,-1115.19,0.00022465,2]
[311855829,1705474245696,-500.0,0.00022465,2]
[311855830,1705474245705,-728.88,0.00022465,2]
[311855831,1705474245717,-6883.2,0.00022465,2]
[311855832,1705474245726,-1257.33,0.00022465,2]
[311855833,1705474245736,-8634.05,0.00022465,2]
[311855834,1705474245745,-500.0,0.00022465,2]
[311855835,1705474245754,-2928.67,0.00022465,2]
[311855836,1705474245764,-1700.17,0.00022465,2]
[311855837,1705474245773,-500.0,0.00022465,2]
[311855838,1705474245784,-328.33906611,0.00022465,2]
[311855844,1705474245889,-171.66093389,0.00022465,2]
[311855846,1705474245898,-168.54285343,0.000225,2]
[311855848,1705474245907,-500.0,0.00022601,2]
[311855850,1705474245916,-2082.34429626,0.00022602,2]
[311855852,1705474245925,-500.0,0.00022602,2]
[311855854,1705474245934,-500.0,0.00022602,2]
[311855856,1705474245943,-500.0,0.00022602,2]
[311855858,1705474245951,-500.0,0.00022602,2]
[311855860,1705474245960,-500.0,0.00022602,2]
[311855862,1705474245969,-500.0,0.00022602,2]
[311855864,1705474245979,-500.0,0.00022602,2]
[311855866,1705474245987,-199.57256183,0.00022602,2]
[311855877,1705474246459,-500.0,0.00021917,2]
[311855878,1705474246468,-357.07206936,0.00021917,2]
[311855879,1705474246478,-500.0,0.00021917,2]
[311855880,1705474246487,-781.71784174,0.00022044,3]
[311855942,1705475432254,-154.98450155,0.00019646,3]
[311855943,1705475432266,-328.4835946,0.00019724,2]
[311855944,1705475432317,-496.42147337,0.00019724,2]
[311855945,1705475432332,-1115.64530026,0.00019724,2]
[311855946,1705475432346,-154.98450155,0.0002,2]
[311855947,1705475432359,-24900.0,0.0002,2]
[311855948,1705475432373,-2995.12470388,0.0002,2]
[311855949,1705475432387,-185.25415827,0.0002024,2]
[311855950,1705475432398,-937.1335892,0.00020365,2]
[311855951,1705475432408,-8019.13445007,0.00021,2]
[311855952,1705475432418,-191.16884209,0.00021906,2]
[311855953,1705475432430,-521.18978843,0.00021915,2]
[311855954,1705475432442,-2101.24804165,0.00021915,2]
[311855955,1705475432454,-2071.696278,0.00021915,2]
[311855956,1705475432466,-155.0,0.00021915,2]
[311855957,1705475432478,-245.97076083,0.00021915,2]
[311855958,1705475432489,-873.46854379,0.00021915,2]
[311855959,1705475432501,-1588.5756211,0.00021915,2]
[311855960,1705475432513,-220.41694556,0.00021915,2]
[311855961,1705475432524,-600.18982921,0.00021915,2]
[311855962,1705475432536,-1957.35589459,0.00021916,2]
[311855963,1705475432547,-638.48739459,0.00021917,2]
[311855964,1705475432560,-500.0,0.00021917,2]
[311855965,1705475432571,-500.0,0.00021917,2]
[311855966,1705475432581,-385.46353208,0.00021917,2]
[311855967,1705475432593,-500.0,0.00021917,2]
[311855968,1705475432604,-500.0,0.00021917,2]
[311855969,1705475432615,-585.66,0.00021917,2]
[311855970,1705475432626,-500.0,0.00021917,2]
[311855971,1705475432637,-500.0,0.00021917,2]
[311855972,1705475432648,-500.0,0.00021917,2]
[311855973,1705475432659,-500.0,0.00021917,2]
[311855974,1705475432670,-500.0,0.00021917,2]
[311855975,1705475432681,-500.0,0.00021917,2]
[311855976,1705475432692,-500.0,0.00021917,2]
[311855977,1705475432703,-500.0,0.00021917,2]
[311855978,1705475432715,-500.0,0.00021917,2]
[311855979,1705475432726,-500.0,0.00021917,2]
[311855980,1705475432737,-1303.14,0.00021917,2]
[311855981,1705475432749,-500.0,0.00021917,2]
[311855982,1705475432760,-470.46759968,0.00021917,2]
[311855983,1705475432771,-500.0,0.00021917,2]
[311855984,1705475432782,-500.0,0.00021917,2]
[311855985,1705475432793,-500.0,0.00021917,2]
[311855986,1705475432806,-1056.18,0.00021917,2]
[311855987,1705475432818,-500.0,0.00021917,2]
[311855988,1705475432829,-500.0,0.00021917,2]
[311855989,1705475432840,-533.42815237,0.00021917,2]
[311855990,1705475432851,-500.0,0.00021917,2]
[311855991,1705475432863,-500.0,0.00021917,2]
[311855992,1705475432875,-500.0,0.00021917,2]
[311855993,1705475432887,-500.0,0.00021917,2]
[311855994,1705475432898,-209.04329782,0.00021917,2]
[311856000,1705475438346,-290.95670218,0.00021917,2]
[311856001,1705475438356,-739.96,0.00021917,2]
[311856002,1705475438365,-500.0,0.00021917,2]
[311856003,1705475438375,-500.0,0.00021917,2]
[311856004,1705475438385,-500.0,0.00021917,2]
[311856005,1705475438394,-426.03382937,0.00021917,2]
[311856006,1705475438405,-211.35617063,0.00021917,2]
[311856007,1705475438415,-500.0,0.00021917,2]
[311856008,1705475438424,-500.0,0.00021917,2]
[311856009,1705475438433,-388.47113927,0.00021917,2]
[311856010,1705475438444,-111.52886073,0.00021917,2]
[311856011,1705475438453,-547.07,0.00021917,2]
[311856012,1705475438462,-500.0,0.00021917,2]
[311856013,1705475438471,-505.04589673,0.00021917,2]
[311856014,1705475438479,-506.36136308,0.00021917,2]
[311856015,1705475438488,-500.0,0.00021917,2]
[311856016,1705475438497,-500.0,0.00021917,2]
[311856017,1705475438507,-1308.5,0.00021917,2]
[311856018,1705475438516,-500.0,0.00021917,2]
[311856019,1705475438526,-500.0,0.00021917,2]
[311856020,1705475438535,-500.0,0.00021917,2]
[311856021,1705475438544,-500.0,0.00021917,2]
[311856022,1705475438553,-500.0,0.00021917,2]
[311856023,1705475438562,-500.0,0.00021917,2]
[311856024,1705475438572,-500.0,0.00021917,2]
[311856025,1705475438581,-500.0,0.00021917,2]
[311856026,1705475438590,-737.66,0.00021917,2]
[311856027,1705475438600,-500.0,0.00021917,2]
[311856028,1705475438609,-500.0,0.00021917,2]
[311856029,1705475438618,-500.0,0.00021917,2]
[311856030,1705475438627,-702.46,0.00021917,2]
[311856031,1705475438637,-505.28582934,0.00021917,2]
[311856032,1705475438646,-500.0,0.00021917,2]
[311856033,1705475438655,-500.0,0.00021917,2]
[311856034,1705475438665,-502.79,0.00021917,2]
[311856035,1705475438674,-500.0,0.00021917,2]
[311856036,1705475438684,-907.25,0.00021917,2]
[311856037,1705475438693,-500.0,0.00021917,2]
[311856038,1705475438703,-500.0,0.00021917,2]
[311856039,1705475438712,-500.0,0.00021917,2]
[311856040,1705475438721,-500.0,0.00021917,2]
[311856041,1705475438731,-505.10395311,0.00021917,2]
[311856042,1705475438740,-500.0,0.00021917,2]
[311856043,1705475438750,-327.43482098,0.00021917,2]
[311856044,1705475438758,-506.80923371,0.00021917,2]
[311856045,1705475438768,-500.0,0.00021917,2]
[311856046,1705475438777,-500.0,0.00021917,2]
[311856047,1705475438786,-500.0,0.00021917,2]
[311856048,1705475438794,-500.0,0.00021917,2]
[311856049,1705475438803,-500.0,0.00021917,2]
[311856050,1705475438814,-465.15047462,0.00021917,2]
[311856051,1705475438822,-1044.13,0.00021917,2]
[311856052,1705475438831,-500.0,0.00021917,2]
[311856053,1705475438840,-500.0,0.00021917,2]
[311856054,1705475438848,-500.0,0.00021917,2]
[311856055,1705475438857,-500.0,0.00021917,2]
[311856056,1705475438866,-515.13,0.00021917,2]
[311856057,1705475438874,-523.68136719,0.00021917,2]
[311856058,1705475438883,-500.0,0.00021917,2]
[311856059,1705475438892,-500.0,0.00021917,2]
[311856060,1705475438902,-500.0,0.00021917,2]
[311856061,1705475438912,-500.0,0.00021917,2]
[311856062,1705475438921,-723.53,0.00021917,2]
[311856063,1705475438930,-500.0,0.00021917,2]
[311856064,1705475438940,-14154.63,0.00021917,2]
[311856065,1705475438950,-500.0,0.00021917,2]
[311856066,1705475438959,-500.0,0.00021917,2]
[311856067,1705475438969,-500.0,0.00021917,2]
[311856068,1705475438978,-500.0,0.00021917,2]
[311856069,1705475438988,-2315.44,0.00021917,2]
[311856070,1705475438999,-389.81459753,0.00021917,2]
[311856071,1705475439009,-500.0,0.00021917,2]
[311856072,1705475439019,-500.0,0.00021917,2]
[311856073,1705475439032,-500.0,0.00021917,2]
[311856074,1705475439041,-500.0,0.00021917,2]
[311856075,1705475439050,-3220.33,0.00021917,2]
[311856076,1705475439059,-648.24,0.00021917,2]
[311856077,1705475439069,-6405.2,0.00021917,2]
[311856078,1705475439079,-500.0,0.00021917,2]
[311856079,1705475439088,-500.0,0.00021917,2]
[311856080,1705475439098,-1449.32,0.00021917,2]
[311856081,1705475439107,-8526.11,0.00021917,2]
[311856082,1705475439116,-500.0,0.00021917,2]
[311856083,1705475439125,-465.35602054,0.00021917,2]
[311856084,1705475439134,-500.0,0.00021917,2]
[311856085,1705475439143,-2706.67,0.00021917,2]
[311856086,1705475439152,-508.23812159,0.00021917,2]
[311856087,1705475439161,-2457.59,0.00021917,2]
[311856088,1705475439170,-500.0,0.00021917,2]